bitfinex-derivatives/quotes_SOLF0:USTF0_20251115
["timestamp","ask_amount","ask_price","bid_price","bid_amount"]
[1763174684627,3.14,142.72,142.64,3.36]
[1763174685725,3.14,142.68,142.61,3.36]
[1763174685926,7.46066644,142.71,142.61,3.36]
[1763174686331,3.14,142.7,142.61,3.36]
[1763174686519,91.95404707,142.86,142.56,4.32066644]
[1763174686520,3.14,142.78,142.65,3.36]
[1763174686719,3.14,142.72,142.7,0.04614797]
[1763174686926,3.19065137,142.72,142.7,0.0498524]
[1763174690027,3.14,142.71,142.7,0.0498524]
[1763174690233,3.14,142.7,142.65,3.36]
[1763174690631,3.14,142.76,142.65,3.36]
[1763174691231,0.04570851,142.72,142.65,3.36]
[1763174691830,3.18570851,142.72,142.65,3.36]
[1763174693231,0.04570851,142.72,142.65,3.36]
[1763174693634,0.04570851,142.72,142.68,3.36]
[1763174693836,0.0509388,142.71,142.68,3.36]
[1763174694531,3.14,142.83,142.68,3.36]
[1763174694732,3.14,142.83,142.71,3.36]
[1763174695632,0.04892955,142.78,142.76,0.04724673]
[1763174695837,0.05178421,142.78,142.76,0.05304168]
[1763174697836,0.05178421,142.78,142.76,3.41304168]
[1763174698034,0.05178421,142.78,142.76,0.05304168]
[1763174698236,0.05178421,142.78,142.76,3.41304168]
[1763174698639,0.05178421,142.78,142.76,0.05304168]
[1763174701033,3.19178421,142.78,142.76,0.05304168]
[1763174701342,0.05178421,142.78,142.76,0.05304168]
[1763174702241,0.05178421,142.78,142.77,3.36]
[1763174702441,0.05178421,142.78,142.76,0.05304168]
[1763174702635,0.05178421,142.78,142.76,3.41304168]
[1763174706545,3.05,142.86,142.78,3.15]
[1763174707434,3.09696964,142.83,142.81,0.04767232]
[1763174707939,3.09696964,142.83,142.74,3.15]
[1763174708146,3.05,142.83,142.74,3.15]
[1763174708341,1.21872209,142.89,142.71,3.15]
[1763174708342,3.05,142.8,142.71,3.15]
[1763174709040,3.05,142.76,142.74,0.04812341]
[1763174709341,3.05,142.76,142.68,3.15]
[1763174709837,3.05,142.76,142.65,3.15]
[1763174710243,3.11909141,142.72,142.65,3.15]
[1763174712046,3.11909141,142.72,142.63,3.04]
[1763174712244,0.0537622,142.69,142.63,3.04]
[1763174713250,0.0537622,142.69,142.65,3.04]
[1763174713651,3.1237622,142.69,142.65,3.04]
[1763174714748,0.0537622,142.69,142.65,3.04]
[1763174714948,3.1237622,142.69,142.63,7.02714686]
[1763174715144,0.0537622,142.69,142.67,3.04]
[1763174715351,3.07,142.77,142.68,10.06714686]
[1763174715650,3.07,142.77,142.65,9.50150938]
[1763174715846,3.07,142.77,142.66,3.04]
[1763174716242,3.07,142.72,142.7,0.05063231]
[1763174717046,0.05139001,142.73,142.7,0.05063231]
[1763174717347,3.12139001,142.73,142.7,0.05063231]
[1763174718043,0.05139001,142.73,142.7,3.09063231]
[1763174721446,3.12139001,142.73,142.7,0.05063231]
[1763174722650,3.07,142.72,142.64,3.04]
[1763174723044,3.07,142.72,142.62,6.46150938]
[1763174723242,3.07,142.72,142.62,3.04]
[1763174723654,0.04638433,142.68,142.62,3.04]
[1763174723953,3.11638433,142.68,142.62,3.04]
[1763174724156,3.11638433,142.68,142.6,6.46150938]
[1763174724454,3.11638433,142.68,142.58,16.52865624]
[1763174724656,0.05313088,142.64,142.58,16.52865624]
[1763174725151,3.07,142.74,142.61,3.04]
[1763174725350,3.07,142.74,142.64,3.04]
[1763174725555,3.07,142.73,142.64,3.04]
[1763174726255,3.07,142.69,142.67,0.04943287]
[1763174726851,3.07,142.69,142.61,3.04]
[1763174727654,3.07,142.69,142.58,6.46150938]
[1763174727655,3.07,142.69,142.58,9.50150938]
[1763174727854,0.0537109,142.65,142.58,9.50150938]
[1763174728056,0.0537109,142.65,142.6,3.04]
[1763174728250,3.07,142.72,142.6,3.04]
[1763174728449,3.07,142.76,142.63,3.04]
[1763174728647,3.07,142.76,142.64,3.04]
[1763174729353,3.07,142.69,142.62,6.46150938]
[1763174729554,3.07,142.69,142.64,0.0446746]
[1763174729855,0.05359525,142.68,142.65,0.04802839]
[1763174730051,3.11524436,142.68,142.65,0.05089212]
[1763174730451,3.11524436,142.68,142.58,3.04]
[1763174730647,3.07,142.68,142.58,3.04]
[1763174731457,0.04980397,142.64,142.58,3.04]
[1763174733758,3.22980397,142.64,142.58,3.04]
[1763174734554,0.04980397,142.64,142.58,3.04]
[1763174734759,0.04980397,142.64,142.59,3.04]
[1763174735258,6.51513288,142.78,142.62,3.04]
[1763174735259,3.18,142.76,142.62,3.04]
[1763174735454,3.18,142.76,142.63,6.46150938]
[1763174735656,3.18,142.76,142.64,3.04]
[1763174736055,0.05102326,142.71,142.69,0.05073199]
[1763174736255,3.23051945,142.71,142.69,0.05073199]
[1763174738257,0.05051945,142.71,142.69,3.09073199]
[1763174739357,3.18,142.79,142.69,3.09073199]
[1763174739558,3.18,142.79,142.69,3.04]
[1763174740363,0.04805055,142.75,142.73,0.05149101]
[1763174742362,3.22805055,142.75,142.73,0.05149101]
[1763174743354,3.22805055,142.75,142.65,3.04]
[1763174743554,3.18,142.75,142.65,3.04]
[1763174743754,3.18,142.8,142.68,10.06714686]
[1763174744066,3.18,142.8,142.7,3.04]
[1763174744271,0.04550108,142.76,142.74,0.05234159]
[1763174745860,3.22550108,142.76,142.74,0.05234159]
[1763174746865,0.04550108,142.76,142.74,3.09234159]
[1763174747066,3.18,142.86,142.74,3.09234159]
[1763174747266,3.18,142.86,142.74,3.04]
[1763174748060,0.04736446,142.81,142.79,0.04747268]
[1763174748256,0.0539064,142.81,142.79,3.08747268]
[1763174749964,3.2339064,142.81,142.79,0.04747268]
[1763174751962,3.18,142.8,142.73,3.04]
[1763174752860,0.04587915,142.78,142.73,3.04]
[1763174753063,0.04587915,142.78,142.75,3.09027459]
[1763174756771,3.22587915,142.78,142.75,0.05027459]
[1763174756965,0.04587915,142.78,142.75,3.09027459]
[1763174758467,87.28,142.87,142.77,3.04]
[1763174759375,0.05038328,142.83,142.81,0.0467789]
[1763174759668,0.05038328,142.83,142.81,3.0867789]
[1763174760270,3.18,142.9,142.82,3.04]
[1763174760973,3.18,142.9,142.79,3.04]
[1763174761170,3.18,142.85,142.83,0.04779938]
[1763174761379,3.18,142.85,142.76,3.04]
[1763174761575,3.18,142.82,142.72,3.04]
[1763174762474,3.23381972,142.78,142.76,0.04910025]
[1763174762671,3.23306433,142.78,142.69,3.04]
[1763174762871,3.18,142.78,142.69,3.04]
[1763174763270,4.3205,142.77,142.69,3.04]
[1763174763477,3.18,142.76,142.66,3.04]
[1763174763873,3.1084714,142.72,142.7,0.05372563]
[1763174764173,3.11220161,142.72,142.7,0.05372563]
[1763174764374,0.05220161,142.72,142.66,3.04]
[1763174764978,3.11220161,142.72,142.66,3.04]
[1763174768675,0.05220161,142.72,142.66,3.04]
[1763174770369,0.05220161,142.72,142.66,7.3605]
[1763174770572,0.05220161,142.72,142.67,3.04]
[1763174770768,3.29220161,142.72,142.67,3.04]
[1763174773781,0.05220161,142.72,142.67,3.04]
[1763174774477,0.05220161,142.72,142.69,3.04]
[1763174774679,0.04881337,142.72,142.69,3.04]
[1763174782279,3.28881337,142.72,142.69,3.04]
[1763174782484,0.04881337,142.72,142.67,3.04]
[1763174782882,3.28881337,142.72,142.67,3.04]
[1763174783281,3.28881337,142.72,142.64,9.50150938]
[1763174783484,3.28881337,142.72,142.64,3.04]
[1763174783680,3.28881337,142.72,142.64,9.50150938]
[1763174784085,3.28881337,142.72,142.65,3.04]
[1763174787792,3.28881337,142.72,142.63,6.46150938]
[1763174787992,3.24,142.68,142.62,3.04]
[1763174789487,7.5605,142.68,142.59,9.50150938]
[1763174789690,0.04529187,142.65,142.59,3.04]
[1763174791293,3.28529187,142.65,142.59,3.04]
[1763174791695,3.24,142.64,142.55,3.04]
[1763174791994,4.36579187,142.65,142.55,3.04]
[1763174791995,0.0493243,142.61,142.55,3.04]
[1763174792590,0.0493243,142.61,142.56,3.04]
[1763174792786,0.0493243,142.61,142.57,3.04]
[1763174800299,0.0493243,142.61,142.57,9.50150938]
[1763174800598,0.0493243,142.61,142.58,3.3]
[1763174803195,3.05,142.69,142.58,9.76150938]
[1763174803395,3.05,142.69,142.6,3.3]
[1763174804288,3.0952597,142.66,142.63,0.05217495]
[1763174804498,3.09813619,142.66,142.63,0.05008243]
[1763174811202,3.05,142.64,142.55,3.3]
[1763174812198,0.05079525,142.61,142.55,3.3]
[1763174814108,3.10079525,142.61,142.55,3.3]
[1763174817514,3.10079525,142.61,142.52,3.3]
[1763174817811,0.05109418,142.58,142.52,3.3]
[1763174818004,3.10109418,142.58,142.52,3.3]
[1763174821919,3.10109418,142.58,142.49,3.3]
[1763174822121,0.04637001,142.55,142.49,3.3]
[1763174822321,3.09637001,142.55,142.49,3.3]
[1763174824427,3.09637001,142.55,142.46,3.07]
[1763174824727,3.05,142.55,142.46,3.07]
[1763174824920,0.04552183,142.52,142.46,3.07]
[1763174825423,0.04552183,142.52,142.47,3.07]
[1763174825623,0.04552183,142.52,142.48,10.10931215]
[1763174825826,3.23,142.59,142.49,3.07]
[1763174826522,3.23,142.59,142.5,3.07]
[1763174826923,0.04774829,142.56,142.54,3.07]
[1763174830432,3.04,142.62,142.54,3.07]
[1763174830934,3.04,142.62,142.55,3.14]
[1763174831525,0.04620613,142.6,142.57,0.04750636]
[1763174831834,0.04620613,142.6,142.57,3.18750636]
[1763174833431,3.08620613,142.6,142.57,3.18750636]
[1763174833632,3.08620613,142.6,142.57,0.04750636]
[1763174836832,3.08620613,142.6,142.57,3.18750636]
[1763174837234,0.04620613,142.6,142.57,3.18750636]
[1763174838140,3.08620613,142.6,142.57,0.04750636]
[1763174838337,3.08620613,142.6,142.57,3.18750636]
[1763174838736,0.04620613,142.6,142.57,3.18750636]
[1763174839238,3.08620613,142.6,142.57,0.04750636]
[1763174841230,0.04620613,142.6,142.57,3.18750636]
[1763174842144,3.08620613,142.6,142.57,0.04750636]
[1763174842537,3.08620613,142.6,142.51,3.14]
[1763174842732,3.04,142.59,142.51,3.14]
[1763174843542,3.04,142.59,142.49,3.14]
[1763174843743,3.08670626,142.55,142.53,0.04918703]
[1763174843946,3.09228038,142.55,142.53,0.04918703]
[1763174844654,3.04,142.54,142.46,3.14]
[1763174845735,0.05302427,142.51,142.46,3.14]
[1763174846342,3.09302427,142.51,142.46,3.14]
[1763174848547,3.09302427,142.51,142.43,9.60150938]
[1763174848747,3.09302427,142.51,142.43,3.14]
[1763174849247,3.09302427,142.51,142.4,9.60150938]
[1763174849449,0.04788853,142.47,142.4,3.14]
[1763174850442,0.04788853,142.47,142.41,3.14]
[1763174852648,3.08788853,142.47,142.41,3.14]
[1763174852843,3.08788853,142.47,142.38,13.49800331]
[1763174852844,3.08788853,142.47,142.38,16.63800331]
[1763174853044,0.05017426,142.44,142.38,3.14]
[1763174855247,0.05017426,142.44,142.4,3.18]
[1763174861749,0.05017426,142.44,142.42,3.18]
[1763174862054,0.05147086,142.44,142.42,3.18]
[1763174867555,3.12,142.53,142.44,3.18]
[1763174867760,3.12,142.53,142.45,5.89295838]
[1763174867960,3.12,142.52,142.45,3.18]
[1763174868159,3.12,142.52,142.36,12.92524383]
[1763174868160,3.12,142.52,142.42,3.18]
[1763174868360,3.12,142.5,142.42,3.18]
[1763174868561,3.16512581,142.47,142.45,0.04649603]
[1763174870359,0.04512581,142.47,142.45,0.04649603]
[1763174870556,3.16512581,142.47,142.45,0.04649603]
[1763174878369,0.04512581,142.47,142.45,0.04649603]
[1763174878669,0.04512581,142.47,142.45,3.22649603]
[1763174882974,3.12,142.46,142.45,0.04649603]
[1763174884375,0.04512581,142.47,142.45,3.31649603]
[1763174885771,3.16,142.53,142.46,3.27]
[1763174887170,0.05185844,142.51,142.48,0.04813836]
[1763174887372,3.21185844,142.51,142.48,0.04813836]
[1763174889672,3.16,142.49,142.48,0.04813836]
[1763174893883,4.79635661,142.48,142.42,6.44660921]
[1763174894077,3.06,142.47,142.43,3.24]
[1763174894572,3.06,142.47,142.42,6.44660921]
[1763174894771,3.06,142.45,142.43,0.04853628]
[1763174894982,3.11022386,142.45,142.43,0.04977992]
[1763174901391,3.06,142.43,142.38,3.24]
[1763174902388,3.11244131,142.42,142.38,3.24]
[1763174905090,0.05244131,142.42,142.38,3.24]
[1763174905989,3.11244131,142.42,142.38,3.24]
[1763174910290,0.05244131,142.42,142.39,3.24]
[1763174910998,4.79635661,142.48,142.41,3.24]
[1763174911286,3.06,142.47,142.41,3.24]
[1763174912288,0.04675357,142.45,142.43,3.29026105]
[1763174912485,3.10675357,142.45,142.43,3.29026105]
[1763174912991,0.04675357,142.45,142.43,3.29026105]
[1763174914788,4.99635661,142.5,142.43,3.29026105]
[1763174914988,4.99635661,142.5,142.43,3.24]
[1763174915201,4.99635661,142.5,142.44,3.24]
[1763174915892,0.04953442,142.48,142.46,3.29294338]
[1763174916794,3.26,142.47,142.46,0.05294338]
[1763174920492,0.04953442,142.48,142.46,0.05294338]
[1763174920692,3.30953442,142.48,142.46,0.05294338]
[1763174923590,3.30953442,142.48,142.46,3.29294338]
[1763174924794,3.30953442,142.48,142.46,0.05294338]
[1763174929816,4.99635661,142.47,142.46,0.05294338]
[1763174930801,3.26,142.46,142.39,9.75009103]
[1763174930996,3.26,142.46,142.4,3.24]
[1763174931197,4.99635661,142.46,142.4,3.24]
[1763174931704,3.26,142.45,142.4,3.24]
[1763174932002,0.05065939,142.44,142.42,3.24]
[1763174932201,0.04775103,142.44,142.42,3.28783067]
[1763174940599,2.71350171,142.5,142.42,3.28783067]
[1763174940802,3.26,142.51,142.44,3.24]
[1763174940995,8.64596843,142.56,142.44,3.24]
[1763174940996,2.71350171,142.56,142.49,3.24]
[1763174941401,3.26,142.55,142.49,3.24]
[1763174941900,0.04705328,142.53,142.51,0.04797995]
[1763174942094,3.30705328,142.53,142.51,0.04797995]
[1763174942301,0.04705328,142.53,142.51,3.28797995]
[1763174950810,3.21705328,142.53,142.51,0.04797995]
[1763174953908,2.71350171,142.52,142.51,0.04797995]
[1763174954116,3.17,142.51,142.45,3.26]
[1763174954416,3.17,142.52,142.45,3.26]
[1763174955010,3.21824082,142.5,142.47,3.30819403]
[1763174956616,0.04824082,142.5,142.47,3.30819403]
[1763174957114,3.21824082,142.5,142.47,3.30819403]
[1763174959417,3.21824082,142.5,142.47,0.04819403]
[1763174959918,3.17,142.48,142.47,0.04819403]
[1763174960911,5.93174253,142.5,142.47,3.30819403]
[1763174961319,3.17,142.49,142.47,0.04819403]
[1763174978632,3.17,142.49,142.47,3.16819403]
[1763174978838,3.15824082,142.5,142.47,3.16819403]
[1763174979441,3.15824082,142.5,142.47,0.04819403]
[1763174980335,0.04824082,142.5,142.47,3.16819403]
[1763174984941,3.15824082,142.5,142.47,3.16819403]
[1763174985143,0.04824082,142.5,142.47,3.16819403]
[1763174986948,0.04824082,142.5,142.47,0.04819403]
[1763174986949,3.15824082,142.5,142.47,0.04819403]
[1763174987142,0.04824082,142.5,142.47,3.16819403]
[1763174987343,3.15824082,142.5,142.47,3.16819403]
[1763174997953,0.04824082,142.5,142.47,3.16819403]
[1763175000357,3.15824082,142.5,142.47,3.16819403]
[1763175000956,3.11,142.54,142.49,3.12]
[1763175001155,3.11,142.52,142.47,9.61471663]
[1763175001460,14.04114921,142.6,142.46,6.49471663]
[1763175001461,3.11,142.5,142.46,6.49471663]
[1763175001657,3.11,142.49,142.46,3.12]
[1763175001855,3.16194544,142.49,142.46,9.66618133]
[1763175002054,3.16194544,142.49,142.46,3.1714647]
[1763175003363,3.16194544,142.49,142.46,0.0514647]
[1763175005865,0.05194544,142.49,142.46,3.2214647]
[1763175006265,0.05194544,142.49,142.47,3.17]
[1763175006455,3.23194544,142.49,142.47,3.17]
[1763175006661,3.23194544,142.49,142.46,3.2214647]
[1763175007059,0.05194544,142.49,142.46,9.71618133]
[1763175007265,0.05194544,142.49,142.47,3.17]
[1763175011663,0.05194544,142.49,142.47,3.32]
[1763175012071,3.36194544,142.49,142.47,3.32]
[1763175012869,3.36194544,142.49,142.46,6.54618133]
[1763175013064,3.31,142.48,142.46,0.0514647]
[1763175026282,3.31,142.46,142.43,3.32]
[1763175027082,3.35447191,142.46,142.43,3.36497015]
[1763175027582,3.35447191,142.46,142.43,0.04497015]
[1763175030679,3.35447191,142.46,142.43,3.36497015]
[1763175031176,3.35447191,142.46,142.43,0.04497015]
[1763175031377,5.08977821,142.46,142.43,0.04497015]
[1763175031582,3.31,142.45,142.43,0.04497015]
[1763175037883,5.00977821,142.46,142.43,3.23497015]
[1763175038083,3.23,142.45,142.43,3.23497015]
[1763175039075,0.04447191,142.46,142.43,3.23497015]
[1763175039276,0.04447191,142.46,142.43,4.97027645]
[1763175039481,0.04447191,142.46,142.44,3.19]
[1763175039888,3.23,142.52,142.44,3.19]
[1763175040084,3.23,142.52,142.45,3.19]
[1763175040289,3.23,142.52,142.46,3.19]
[1763175040876,0.04949426,142.5,142.46,3.19]
[1763175041176,3.27949426,142.5,142.48,0.05136154]
[1763175042088,3.27949426,142.5,142.48,3.24136154]
[1763175044983,3.27949426,142.5,142.48,0.05136154]
[1763175047390,0.04949426,142.5,142.48,3.24136154]
[1763175048187,3.27949426,142.5,142.48,3.24136154]
[1763175049085,0.04949426,142.5,142.48,3.24136154]
[1763175058895,3.23,142.59,142.51,3.19]
[1763175059101,3.23,142.59,142.52,3.19]
[1763175059802,3.28023877,142.57,142.54,3.24380072]
[1763175060489,3.23,142.55,142.47,9.68471663]
[1763175060691,3.23,142.55,142.47,3.19]
[1763175061496,0.04734942,142.52,142.5,0.04788072]
[1763175061701,3.27734942,142.52,142.5,0.04788072]
[1763175062404,5.98609352,142.52,142.5,0.04788072]
[1763175062603,3.23,142.51,142.5,0.04788072]
[1763175064807,3.23,142.51,142.45,3.19]
[1763175065806,3.23,142.51,142.47,0.03725487]
[1763175066509,3.23,142.51,142.47,3.30725487]
[1763175066802,3.25,142.56,142.47,6.01599897]
[1763175067103,3.25,142.56,142.49,3.27]
[1763175067907,3.25,142.53,142.51,0.04574499]
[1763175070211,3.25,142.53,142.51,2.75448909]
[1763175072907,0.04504692,142.54,142.51,5.85448909]
[1763175073109,0.04504692,142.54,142.53,5.8087441]
[1763175073709,3.16,142.59,142.53,5.8087441]
[1763175074814,3.2076643,142.57,142.55,0.05039517]
[1763175075012,3.20494048,142.57,142.55,0.05039517]
[1763175080314,0.04494048,142.57,142.55,5.85913927]
[1763175080506,0.04494048,142.57,142.56,3.1]
[1763175081415,3.20494048,142.57,142.55,5.85913927]
[1763175081608,3.20494048,142.57,142.55,2.75913927]
[1763175081813,3.20494048,142.57,142.55,0.05039517]
[1763175082008,3.20494048,142.57,142.55,5.85913927]
[1763175084113,0.04494048,142.57,142.55,5.85913927]
[1763175088615,0.04494048,142.57,142.55,3.15039517]
[1763175088915,3.20494048,142.57,142.55,3.15039517]
[1763175089415,0.04494048,142.57,142.55,3.15039517]
[1763175091212,0.04494048,142.57,142.56,3.1]
[1763175093324,3.16,142.62,142.56,3.1]
[1763175093622,3.16,142.62,142.58,3.1]
[1763175094318,0.05113477,142.61,142.59,3.2295185]
[1763175094524,0.04686552,142.61,142.59,5.9382626]
[1763175094719,3.21,142.65,142.6,3.18]
[1763175095523,87.45,142.66,142.62,3.18]
[1763175095725,0.0442892,142.65,142.63,3.23083508]
[1763175096121,0.0442892,142.65,142.63,5.93957918]
[1763175096420,0.0442892,142.65,142.64,3.18]
[1763175097023,3.2542892,142.65,142.63,2.75957918]
[1763175097217,3.2542892,142.65,142.58,3.18]
[1763175097722,3.21,142.62,142.55,3.18]
[1763175098324,2.7087441,142.63,142.57,0.05196268]
[1763175098325,3.26167123,142.6,142.57,0.05196268]
[1763175098725,2.7087441,142.65,142.58,3.18]
[1763175098726,3.21,142.65,142.58,3.18]
[1763175099819,0.05333937,142.63,142.6,3.22585427]
[1763175100026,3.26333937,142.63,142.6,3.22585427]
[1763175100424,0.05333937,142.63,142.6,3.22585427]
[1763175100827,3.26333937,142.63,142.6,3.22585427]
[1763175104126,0.05333937,142.63,142.6,3.22585427]
[1763175106132,3.21,142.7,142.6,3.22585427]
[1763175106326,3.21,142.7,142.6,3.18]
[1763175107236,0.05380462,142.66,142.64,3.23090938]
[1763175110033,3.26380462,142.66,142.64,3.23090938]
[1763175110536,0.05380462,142.66,142.64,3.23090938]
[1763175110726,3.26380462,142.66,142.64,0.05090938]
[1763175112538,0.05380462,142.66,142.64,3.23090938]
[1763175113437,3.26380462,142.66,142.64,0.05090938]
[1763175119334,0.05380462,142.66,142.64,0.05090938]
[1763175119537,0.05380462,142.66,142.64,3.23090938]
[1763175120646,3.21,142.7,142.64,3.23090938]
[1763175121549,0.04751852,142.68,142.64,3.23090938]
[1763175121751,3.25751852,142.68,142.64,3.23090938]
[1763175121952,3.21,142.66,142.64,0.05090938]
[1763175123252,0.04751852,142.68,142.59,3.18]
[1763175123253,4.94050413,142.65,142.59,3.18]
[1763175124354,0.0492912,142.63,142.61,0.05345101]
[1763175124751,3.3592912,142.63,142.61,0.05345101]
[1763175125250,3.31,142.62,142.61,0.05345101]
[1763175125445,3.31,142.61,142.53,9.52471663]
[1763175125750,5.04050413,142.58,142.54,3.03]
[1763175126454,3.35727228,142.57,142.55,0.04538449]
[1763175126955,5.04050413,142.56,142.55,0.04538449]
[1763175129160,0.04727228,142.57,142.55,3.07538449]
[1763175130158,3.31,142.62,142.55,3.07538449]
[1763175130350,1.73050413,142.61,142.55,3.07538449]
[1763175130555,1.73050413,142.62,142.55,3.03]
[1763175130750,1.73050413,142.62,142.56,3.25]
[1763175131052,3.24,142.66,142.57,3.25]
[1763175131258,1.73050413,142.67,142.61,3.25]
[1763175131458,0.04928491,142.65,142.64,3.25]
[1763175131759,3.29277261,142.66,142.63,0.04927812]
[1763175131955,3.28556443,142.66,142.63,0.05107202]
[1763175132154,0.04556443,142.66,142.63,3.30107202]
[1763175132656,3.24,142.64,142.63,0.05107202]
[1763175133958,3.24,142.64,142.57,9.74471663]
[1763175134854,0.04851919,142.62,142.59,0.05378896]
[1763175135060,3.28851919,142.62,142.59,0.05378896]
[1763175137261,0.04851919,142.62,142.59,3.30378896]
[1763175138759,0.04851919,142.62,142.61,3.25]
[1763175139355,0.04851919,142.62,142.61,9.74471663]
[1763175140049,3.24,142.68,142.61,9.74471663]
[1763175140251,3.24,142.68,142.62,3.25]
[1763175140452,3.24,142.68,142.62,9.74471663]
[1763175141160,0.05139873,142.66,142.64,3.29658662]
[1763175141462,3.24,142.71,142.64,3.29658662]
[1763175142259,3.24,142.71,142.66,3.25]
[1763175142458,0.04768655,142.7,142.67,0.05179206]
[1763175142659,0.04768655,142.7,142.67,3.30179206]
[1763175142861,3.28768655,142.7,142.67,3.30179206]
[1763175144563,3.28768655,142.7,142.67,0.05179206]
[1763175149567,3.24,142.69,142.67,0.05179206]
[1763175149875,3.24,142.69,142.6,3.25]
[1763175150772,3.24,142.65,142.63,0.04980551]
[1763175151871,0.04723243,142.66,142.63,3.29980551]
[1763175155977,0.04723243,142.66,142.64,3.3]
[1763175157471,1.73082538,142.7,142.64,3.3]
[1763175158480,4.78082538,142.7,142.64,3.3]
[1763175158676,0.05077785,142.68,142.64,3.3]
[1763175161179,0.05077785,142.68,142.65,3.3]
[1763175163081,4.78082538,142.73,142.65,3.3]
[1763175163280,4.78082538,142.73,142.67,3.3]
[1763175163582,3.05,142.73,142.67,3.3]
[1763175164181,0.05324954,142.71,142.69,0.05051157]
[1763175164982,3.10324954,142.71,142.69,0.05051157]
[1763175165183,0.05324954,142.71,142.69,3.35051157]
[1763175169886,3.10324954,142.71,142.69,0.05051157]
[1763175170091,3.05,142.7,142.69,0.05051157]
[1763175170387,3.05,142.7,142.64,3.3]
[1763175171184,3.05,142.7,142.66,0.05339627]
[1763175174382,3.05,142.68,142.66,0.05339627]
[1763175174878,3.05,142.66,142.62,3.3]
[1763175175281,3.05,142.66,142.63,3.3]
[1763175175683,3.05,142.68,142.63,3.3]
[1763175175883,0.04854527,142.66,142.63,3.34826142]
[1763175179493,0.04854527,142.66,142.64,3.3]
[1763175181296,3.05,142.71,142.65,3.3]
[1763175181487,3.05,142.71,142.66,3.3]
[1763175182390,3.09716546,142.7,142.67,3.34580058]
[1763175182585,0.04716546,142.7,142.67,3.34580058]
[1763175182797,3.09716546,142.7,142.67,3.34580058]
[1763175183095,0.04716546,142.7,142.67,3.34580058]
[1763175183697,0.04716546,142.7,142.67,9.84051721]
[1763175183998,0.04716546,142.7,142.68,3.33]
[1763175184390,2.70387922,142.75,142.69,3.33]
[1763175184596,6.01387922,142.75,142.69,9.82471663]
[1763175184991,3.31,142.75,142.7,3.33]
[1763175185598,0.05237915,142.74,142.71,0.04679024]
[1763175185801,3.36237915,142.74,142.71,0.04679024]
[1763175186097,3.36237915,142.74,142.71,3.37679024]
[1763175186293,3.36237915,142.74,142.71,0.04679024]
[1763175191594,3.36237915,142.74,142.71,3.27679024]
[1763175192102,3.27237915,142.74,142.71,3.27679024]
[1763175192305,0.05237915,142.74,142.71,3.27679024]
[1763175193603,0.05237915,142.74,142.72,3.23]
[1763175196104,3.22,142.83,142.73,4.63]
[1763175196400,3.22,142.83,142.77,3.23]
[1763175197002,0.04984537,142.81,142.79,3.28249548]
[1763175198304,3.26984537,142.81,142.79,0.05249548]
[1763175198505,3.22,142.8,142.72,9.71251653]
[1763175198704,3.22,142.8,142.73,3.23]
[1763175199001,3.22,142.8,142.74,3.23]
[1763175199404,0.04895535,142.78,142.76,0.0529643]
[1763175199603,0.04895535,142.78,142.76,3.2829643]
[1763175199802,3.26895535,142.78,142.76,0.0529643]
[1763175201709,0.04895535,142.78,142.76,3.2829643]
[1763175202012,3.26895535,142.78,142.76,0.0529643]
[1763175203513,0.04895535,142.78,142.76,0.0529643]
[1763175203712,0.04895535,142.78,142.76,3.2829643]
[1763175204708,3.26895535,142.78,142.76,0.0529643]
[1763175204912,0.04895535,142.78,142.76,3.2829643]
[1763175205416,3.26895535,142.78,142.76,0.0529643]
[1763175205616,0.04895535,142.78,142.76,3.2829643]
[1763175207814,3.26895535,142.78,142.76,0.0529643]
[1763175208117,0.04895535,142.78,142.76,3.2829643]
[1763175209212,5.92387922,142.84,142.76,3.2829643]
[1763175209412,3.22,142.83,142.76,3.2829643]
[1763175210220,0.04585423,142.81,142.76,3.2829643]